bitfinex/quotes_BTCUSD_20241202
["timestamp","ask_amount","ask_price","bid_price","bid_amount"]
[1733126282076,7.90240311,96080.0,96079.0,0.0207282]
[1733126282790,7.90240311,96080.0,96079.0,0.0297282]
[1733126288167,7.90240311,96080.0,96079.0,0.0207282]
[1733126288403,7.90340311,96080.0,96079.0,0.0277282]
[1733126289130,7.90340311,96080.0,96079.0,0.0187282]
[1733126289360,7.90440311,96080.0,96079.0,0.0207282]
[1733126289564,7.90340311,96080.0,96079.0,0.0207282]
[1733126289802,7.90440311,96080.0,96079.0,0.0277282]
[1733126292219,8.11256211,96080.0,96079.0,0.0277282]
[1733126293563,8.11156211,96080.0,96079.0,0.0187282]
[1733126293966,8.11256211,96080.0,96079.0,0.0187282]
[1733126294912,8.11156211,96080.0,96079.0,0.0117282]
[1733126295141,8.11156211,96080.0,96079.0,0.0137282]
[1733126304376,8.11160211,96080.0,96079.0,0.0137282]
[1733126310401,7.90344311,96080.0,96079.0,0.0137282]
[1733126310649,7.77654311,96080.0,96079.0,0.0137282]
[1733126311500,7.77654311,96080.0,96079.0,0.0117282]
[1733126311733,7.77654311,96080.0,96079.0,0.0137282]
[1733126311734,7.77554311,96080.0,96079.0,0.0137282]
[1733126312597,7.77554311,96080.0,96079.0,0.0147282]
[1733126313069,7.77554311,96080.0,96079.0,0.0127282]
[1733126313286,7.90694311,96080.0,96079.0,0.0127282]
[1733126313526,7.90694311,96080.0,96079.0,0.02829809]
[1733126313964,7.90694311,96080.0,96079.0,0.0127282]
[1733126314428,7.90694311,96080.0,96079.0,0.0137282]
[1733126314639,7.90694311,96080.0,96079.0,0.0127282]
[1733126314851,7.90694311,96080.0,96079.0,0.0117282]
[1733126315074,7.90694311,96080.0,96079.0,0.0137282]
[1733126316162,7.90694311,96080.0,96079.0,0.02767946]
[1733126316375,7.90694311,96080.0,96079.0,0.0137282]
[1733126318672,7.77554311,96080.0,96079.0,0.0137282]
[1733126321959,7.77554311,96080.0,96079.0,0.0117282]
[1733126322430,7.77554311,96080.0,96079.0,0.0137282]
[1733126323546,7.77554311,96080.0,96079.0,0.0157282]
[1733126324186,7.77554311,96080.0,96079.0,0.0137282]
[1733126324403,7.77554311,96080.0,96079.0,0.0167282]
[1733126336613,7.87837457,96080.0,96079.0,0.0167282]
[1733126336817,7.82324311,96080.0,96079.0,0.0167282]
[1733126337434,7.82324311,96080.0,96002.0,0.59853623]
[1733126337645,0.09388001,96055.0,96054.0,0.208216]
[1733126337980,0.09388001,96055.0,96054.0,0.358216]
[1733126338181,0.09388001,96059.0,96055.0,0.15]
[1733126338393,0.09388001,96056.0,96055.0,0.15]
[1733126339900,0.09388001,96055.0,96054.0,0.15]
[1733126340106,0.09488001,96055.0,96054.0,0.159]
[1733126340319,0.09488001,96055.0,96054.0,0.158]
[1733126340551,0.001,96055.0,96054.0,0.158]
[1733126340756,0.09488001,96055.0,96054.0,0.158]
[1733126341488,0.09588001,96055.0,96054.0,0.167]
[1733126342137,0.002,96055.0,96054.0,0.167]
[1733126342347,0.09588001,96055.0,96054.0,0.167]
[1733126342564,0.09588001,96055.0,96054.0,0.1679997]
[1733126344729,0.002,96055.0,96054.0,0.1679997]
[1733126347728,0.09588001,96055.0,96054.0,0.1679997]
[1733126349133,0.002,96055.0,96054.0,0.1679997]
[1733126349367,0.09588001,96055.0,96054.0,0.1679997]
[1733126349598,0.002,96055.0,96054.0,0.2433997]
[1733126350052,0.0037286,96055.0,96054.0,0.2433997]
[1733126353229,0.0037286,96055.0,96054.0,0.2917997]
[1733126353465,0.00344682,96055.0,96054.0,0.2917997]
[1733126353697,0.00090818,96055.0,96054.0,0.2917997]
[1733126356492,0.00090818,96055.0,96054.0,0.39464491]
[1733126362182,0.00090818,96055.0,96054.0,0.39550921]
[1733126364661,0.00090818,96055.0,96054.0,0.37850921]
[1733126365309,0.00090818,96055.0,96054.0,0.38250921]
[1733126366617,0.00090818,96055.0,96054.0,0.37850921]
[1733126366818,0.00090818,96055.0,96054.0,0.33010921]
[1733126367034,0.00090818,96055.0,96054.0,0.25470921]
[1733126368562,0.00090818,96055.0,96054.0,0.27070921]
[1733126371769,0.00090818,96055.0,96054.0,0.31100921]
[1733126372041,0.00090818,96055.0,96054.0,0.38690921]
[1733126372277,0.00090818,96055.0,96054.0,0.39390921]
[1733126372920,0.00090818,96055.0,96054.0,0.38690921]
[1733126373125,0.00090818,96055.0,96054.0,0.39590921]
[1733126373346,0.00090818,96055.0,96054.0,0.39390921]
[1733126373757,0.00090818,96055.0,96054.0,0.40290921]
[1733126379757,0.00090818,96055.0,96054.0,0.42590921]
[1733126380090,0.00090818,96055.0,96054.0,1.14105121]
[1733126380558,0.00090818,96055.0,96054.0,1.13405121]
[1733126380976,0.00090818,96055.0,96054.0,1.12505121]
[1733126382598,0.00090818,96055.0,96054.0,1.12605121]
[1733126383058,0.00090818,96055.0,96054.0,1.12505121]
[1733126383455,0.00090818,96055.0,96054.0,1.12605121]
[1733126386893,0.00090818,96055.0,96054.0,1.22605121]
[1733126387139,4.216e-05,96055.0,96054.0,1.22605121]
[1733126387385,4.216e-05,96055.0,96054.0,1.22505121]
[1733126387592,4.216e-05,96055.0,96054.0,1.22605121]
[1733126388888,4.216e-05,96055.0,96054.0,2.29435921]
[1733126389094,4.216e-05,96055.0,96054.0,2.29385921]
[1733126389314,4.216e-05,96055.0,96054.0,1.97839821]
[1733126389751,4.216e-05,96055.0,96054.0,1.94139821]
[1733126391481,4.216e-05,96055.0,96054.0,1.88336121]
[1733126391692,4.216e-05,96055.0,96054.0,1.29117421]
[1733126392349,4.216e-05,96055.0,96054.0,1.11123921]
[1733126392585,4.216e-05,96055.0,96054.0,0.41040921]
[1733126393833,4.216e-05,96055.0,96054.0,0.38740921]
[1733126400316,4.216e-05,96055.0,96054.0,0.38701921]
[1733126401176,0.00046785,96064.0,96054.0,0.38701921]
[1733126401407,0.00046785,96064.0,96063.0,0.208196]
[1733126401616,0.00046785,96064.0,96063.0,0.31104121]
[1733126402246,0.00046785,96064.0,96063.0,0.46104121]
[1733126402451,0.00046785,96064.0,96063.0,0.25284521]
[1733126403848,0.00046785,96064.0,96063.0,0.25484521]
[1733126404273,0.00014133,96064.0,96063.0,0.25484521]
[1733126404473,0.0757,96065.0,96063.0,0.25484521]
[1733126404692,0.0757,96065.0,96064.0,0.46202471]
[1733126404907,0.0757,96065.0,96064.0,0.25383071]
[1733126405347,0.1239,96065.0,96064.0,0.25383071]
[1733126406191,0.21778001,96065.0,96064.0,0.0009855]
[1733126406445,0.14288001,96064.0,96063.0,0.003]
[1733126406621,0.14434461,96064.0,96063.0,0.002]
[1733126406823,0.09388001,96060.0,96059.0,0.15]
[1733126407448,0.21598001,96060.0,96059.0,0.15]
[1733126407971,0.21598001,96060.0,96054.0,0.01446016]
[1733126407972,0.09388001,96059.0,96054.0,0.01446016]
[1733126408179,0.09388001,96059.0,96056.0,0.15]
[1733126408385,0.09388001,96059.0,96057.0,0.10284521]
[1733126408588,0.09388001,96059.0,96058.0,0.15]
[1733126408745,0.09388001,96059.0,96058.0,0.25284521]
[1733126409599,0.09534461,96059.0,96058.0,0.25382971]
[1733126409804,0.14144461,96059.0,96058.0,0.0009845]
[1733126410257,0.14144461,96059.0,96058.0,0.0069845]
[1733126410730,0.14144461,96059.0,96058.0,0.0149845]
[1733126413557,0.09388001,96059.0,96058.0,0.26684521]
[1733126413766,0.09388001,96059.0,96058.0,0.47505221]
[1733126414210,0.09388001,96059.0,96058.0,0.26684521]
[1733126414443,0.09388001,96059.0,96058.0,0.25884521]
[1733126414680,0.09388001,96059.0,96058.0,0.25284521]
[1733126414882,0.09388001,96059.0,96058.0,0.26782691]
[1733126415774,0.09388001,96059.0,96058.0,0.26182691]
[1733126415986,0.09388001,96059.0,96058.0,0.26782691]
[1733126416403,0.09388001,96059.0,96058.0,0.0089817]
[1733126416645,0.22358001,96059.0,96058.0,0.0009817]
[1733126417078,0.22358001,96059.0,96058.0,0.0089817]
[1733126417320,0.22358001,96059.0,96058.0,0.0009817]
[1733126417543,0.43178501,96059.0,96058.0,0.0089817]
[1733126417776,0.43178501,96059.0,96058.0,0.0009817]
[1733126418241,0.43178501,96059.0,96058.0,0.0069817]
[1733126418245,0.43178501,96059.0,96058.0,0.0149817]
[1733126418458,0.43178501,96059.0,96058.0,0.0009817]
[1733126418671,0.43178501,96059.0,96058.0,0.0069817]
[1733126419371,0.43178501,96059.0,96058.0,0.006]
[1733126419826,0.43178501,96059.0,96058.0,0.014]
[1733126420057,0.43178501,96059.0,96058.0,0.006]
[1733126420529,0.43178501,96059.0,96058.0,0.014]
[1733126420784,0.43178501,96059.0,96058.0,0.006]
[1733126420993,0.43178501,96059.0,96058.0,0.014]
[1733126421431,0.43178501,96059.0,96058.0,0.008]
[1733126421856,0.43178501,96059.0,96015.0,0.014]
[1733126421857,0.09355334,96022.0,96015.0,0.014]
[1733126422090,0.09322691,96022.0,96010.0,0.3147442]
[1733126422301,0.09322691,96022.0,96005.0,0.208322]
[1733126422537,0.20599151,96022.0,96015.0,0.01365817]
[1733126422756,0.20599151,96022.0,96010.0,0.1064342]
[1733126423441,0.20605097,96022.0,96005.0,0.416644]
[1733126423684,0.20605097,96022.0,96005.0,0.208322]
[1733126423908,0.20605097,96022.0,95999.0,0.208333]
[1733126424123,0.20605097,96022.0,96010.0,0.1064342]
[1733126424364,0.20605097,96022.0,96000.0,0.1064342]
[1733126424365,0.20605097,96022.0,96021.0,0.005553]
[1733126425297,0.20605097,96022.0,96021.0,0.000553]
[1733126425781,0.20605097,96022.0,96021.0,0.002553]
[1733126426229,0.15945097,96022.0,96021.0,0.002553]
[1733126426476,0.06622406,96022.0,96021.0,0.002553]
[1733126426691,0.15945097,96022.0,96021.0,0.002553]
[1733126427142,0.15945097,96022.0,96021.0,0.000553]
[1733126427350,0.15945097,96022.0,96021.0,0.002553]
[1733126427778,0.16045097,96022.0,96021.0,0.002553]
[1733126428001,0.16045097,96022.0,96021.0,0.000553]
[1733126428235,0.16045097,96022.0,96021.0,0.002553]
[1733126429619,0.15945097,96022.0,96021.0,0.002553]
[1733126430054,0.20455097,96022.0,96021.0,0.003417]
[1733126432930,0.22564627,96022.0,96021.0,0.003417]
[1733126433156,0.22418167,96022.0,96021.0,0.003417]
[1733126434095,0.34718167,96022.0,96021.0,0.003417]
[1733126437417,0.34718167,96022.0,96021.0,0.001417]
[1733126437645,0.39333297,96022.0,96021.0,0.002417]
[1733126437876,0.34718167,96022.0,96021.0,0.002417]
[1733126438099,0.34818167,96022.0,96021.0,0.002417]
[1733126438322,0.32518167,96022.0,96021.0,0.002417]
[1733126438549,0.52802688,96022.0,96021.0,0.002417]
[1733126439508,0.4811373,96022.0,96021.0,0.002417]
[1733126442308,0.4828659,96022.0,96021.0,0.002417]
[1733126446155,0.4818659,96022.0,96021.0,0.002417]
[1733126446368,0.4617706,96022.0,96021.0,0.002417]
[1733126446814,0.4617706,96022.0,96021.0,0.001417]
[1733126447490,0.4617706,96022.0,96021.0,0.002417]
[1733126449473,0.4847706,96022.0,96021.0,0.002417]
[1733126450109,0.4848106,96022.0,96021.0,0.002417]
[1733126453210,1.4848106,96022.0,96021.0,0.001864]
[1733126456310,1.4848106,96022.0,96021.0,0.001364]
[1733126462541,1.29158369,96022.0,96021.0,0.001364]
[1733126462774,1.4848106,96022.0,96021.0,0.001364]
[1733126465239,1.4618106,96022.0,96021.0,0.001364]
[1733126466794,1.58455953,96022.0,96021.0,0.001364]
[1733126467009,1.58455953,96022.0,96011.0,0.000553]
[1733126467010,0.50153391,96012.0,96011.0,0.000553]
[1733126467233,0.60437912,96012.0,96011.0,0.000553]
[1733126467902,0.65167912,96012.0,96011.0,0.000553]
[1733126468127,0.75451058,96012.0,96011.0,0.000553]
[1733126469664,0.75551058,96012.0,96011.0,0.000553]
[1733126470496,0.75551058,96012.0,96011.0,0.001553]
[1733126471392,0.85561058,96012.0,96011.0,0.001553]
[1733126471865,0.86972061,96012.0,96011.0,0.001553]
[1733126472327,0.86972061,96012.0,96001.0,0.0008632]
[1733126472328,0.57055491,96002.0,96001.0,0.0008632]
[1733126472566,0.75060012,96002.0,96001.0,0.0008632]
[1733126473023,0.67340012,96002.0,96001.0,0.0008632]
[1733126473249,0.69386111,96002.0,96001.0,0.0008632]
[1733126474343,0.69786111,96002.0,96001.0,0.0008632]
[1733126474591,0.79632962,96002.0,96001.0,0.0008632]
[1733126475303,0.62886111,96002.0,96001.0,0.0008632]
[1733126475532,0.27848899,96002.0,96001.0,0.0008632]
[1733126475772,0.3260159,96002.0,96001.0,0.0008632]
[1733126476209,0.09722691,96002.0,96001.0,0.2781632]
[1733126477074,0.09322691,96002.0,96001.0,0.2781632]
[1733126477278,0.09322691,96002.0,96001.0,0.2801632]
[1733126477892,0.09322691,96002.0,96001.0,0.2781632]
[1733126478106,0.09322691,96002.0,96001.0,0.2821632]
[1733126479008,0.09322691,96002.0,96001.0,0.2861632]
[1733126479222,0.12847076,96002.0,96001.0,0.0906632]
[1733126479438,0.12847076,96002.0,96001.0,0.0088632]
[1733126480097,0.12847076,96002.0,96001.0,0.0048632]
[1733126480303,0.12847076,96002.0,96001.0,0.0008632]
[1733126480528,0.12847076,96002.0,96001.0,0.0018632]
[1733126480744,0.12947076,96002.0,96001.0,0.0018632]
[1733126480954,0.12947076,96002.0,96001.0,0.0008632]
[1733126481173,0.12947076,96002.0,96001.0,0.0018632]
[1733126482060,0.45431597,96002.0,96001.0,0.0018632]
[1733126482273,0.45385137,96002.0,96001.0,0.0018632]
[1733126483140,0.45285137,96002.0,96001.0,0.0008632]
[1733126483372,0.45285137,96002.0,96001.0,0.0018632]
[1733126483599,0.45385137,96002.0,96001.0,0.0018632]
[1733126483807,0.65385137,96002.0,96001.0,0.0018632]
[1733126484013,0.80385137,96002.0,96001.0,2e-07]
[1733126484254,0.80385137,96002.0,95982.0,0.0017262]
[1733126484255,0.29322691,95983.0,95982.0,0.0017262]
[1733126484456,0.50228741,95983.0,95982.0,0.0017262]
[1733126485191,0.52298424,95983.0,95982.0,0.0017262]
[1733126485608,0.52298424,95983.0,95982.0,0.0023225]
[1733126485609,0.67298424,95983.0,95982.0,0.0023225]
[1733126486079,0.29290021,95981.0,95980.0,0.0005963]
[1733126486321,0.41874542,95981.0,95980.0,0.0005963]
[1733126486550,0.52157688,95981.0,95980.0,0.000775]
[1733126486800,0.64877688,95981.0,95980.0,0.0001787]
[1733126487693,0.65777688,95981.0,95980.0,0.0010007]
[1733126487926,0.65877688,95981.0,95980.0,0.0010007]
[1733126488161,0.80877688,95981.0,95980.0,0.0010007]
[1733126489072,0.80777688,95981.0,95980.0,0.0010007]
[1733126489535,0.80777688,95981.0,95980.0,7e-07]
[1733126489536,0.79977688,95981.0,95980.0,7e-07]
[1733126489994,0.80877688,95981.0,95980.0,0.0010007]
[1733126490282,0.80877688,95981.0,95980.0,7e-07]
[1733126490497,0.50131121,95964.0,95956.0,0.0009824]
[1733126490705,0.62715642,95964.0,95963.0,0.05005958]
[1733126492065,0.75055642,95964.0,95963.0,0.05005958]
[1733126492809,0.62715642,95964.0,95963.0,0.05005958]
[1733126493523,0.65097072,95964.0,95963.0,0.05005958]
[1733126493774,0.75380218,95964.0,95963.0,0.05005958]
[1733126497375,0.76749644,95964.0,95963.0,0.05005958]
[1733126498318,0.57426953,95964.0,95963.0,0.05005958]
[1733126498545,0.76749644,95964.0,95963.0,0.05005958]
[1733126499020,0.74449644,95964.0,95963.0,0.05005958]
[1733126499234,0.74449644,95964.0,95963.0,0.05092428]
[1733126501029,0.34876477,95964.0,95963.0,0.05092428]
[1733126501240,0.24591956,95964.0,95963.0,0.05092428]
[1733126501749,0.09622691,95964.0,95963.0,0.05092428]
[1733126501955,0.09769151,95964.0,95963.0,0.17372428]
[1733126502189,0.003,95964.0,95963.0,0.17372428]
[1733126502417,0.0044646,95964.0,95963.0,0.17372428]
[1733126502630,0.003,95964.0,95963.0,0.17372428]
[1733126503317,0.09322691,95964.0,95963.0,0.17372428]
[1733126503544,0.09322691,95964.0,95963.0,0.18172428]
[1733126504030,0.09322691,95964.0,95963.0,0.17772428]
[1733126504241,0.09322691,95964.0,95963.0,0.17372428]
[1733126504449,0.09322691,95964.0,95963.0,0.18172428]
[1733126504866,0.09469151,95964.0,95963.0,0.18172428]
[1733126505073,0.09322691,95964.0,95963.0,0.18172428]
[1733126505975,0.09290021,95964.0,95963.0,0.17372428]
[1733126506395,0.09290021,95964.0,95963.0,0.17472428]
[1733126506850,0.09290021,95964.0,95963.0,0.17572428]
[1733126507068,0.09290021,95964.0,95963.0,0.17872428]
[1733126507290,0.09290021,95964.0,95963.0,0.17572428]
[1733126507500,0.09290021,95964.0,95963.0,0.17372428]
[1733126507712,0.09290021,95964.0,95963.0,0.18072428]
[1733126508003,0.0014646,95973.0,95963.0,0.17772428]
[1733126508245,0.09290021,95964.0,95963.0,0.17772428]
[1733126508484,0.09290021,95964.0,95963.0,0.12992428]
[1733126508702,0.09436481,95964.0,95963.0,0.12992428]
[1733126509189,0.09436481,95964.0,95963.0,0.12592428]
[1733126509424,0.09290021,95964.0,95963.0,0.13292428]
[1733126509640,0.0014646,95964.0,95963.0,0.12992428]
[1733126509865,0.09290021,95964.0,95963.0,0.12592428]
[1733126510086,0.09290021,95964.0,95963.0,0.12692428]
[1733126510303,0.09436481,95964.0,95963.0,0.12892428]
[1733126510778,0.09436481,95964.0,95963.0,0.12992428]
[1733126514068,0.208381,95978.0,95964.0,0.0483]
[1733126514284,0.0014646,95977.0,95968.0,0.16262795]
[1733126514577,0.09290021,95970.0,95969.0,0.0781]
[1733126515035,0.09290021,95970.0,95969.0,0.1241]
[1733126515461,0.09290021,95971.0,95969.0,0.1241]
[1733126515684,0.006,95978.0,95969.0,0.1241]
[1733126515685,0.0074646,95978.0,95972.0,0.1503267]
[1733126515919,0.0074646,95978.0,95977.0,0.0003267]
[1733126515920,0.0056727,95978.0,95977.0,0.0003267]
[1733126516138,0.0056727,95978.0,95977.0,0.37467191]
[1733126516616,0.0017294,95981.0,95979.0,0.15]
[1733126516820,0.0017294,95981.0,95980.0,0.22467191]
[1733126517037,0.0017294,95981.0,95980.0,0.43304791]
[1733126518342,0.0017294,95981.0,95980.0,0.43402801]
[1733126518550,0.0017294,95981.0,95980.0,0.58402801]
[1733126518989,0.0017294,95981.0,95980.0,0.58702801]
[1733126519618,0.0017294,95981.0,95980.0,0.58402801]
[1733126519824,0.0014646,96009.0,95997.0,0.37096495]
[1733126520028,0.0014646,96008.0,95998.0,0.0755]
[1733126520498,0.0014646,96008.0,95998.0,0.23812795]
[1733126520761,0.0014646,96012.0,95999.0,0.0498]
[1733126521054,0.02106278,96015.0,95999.0,0.2584607]
[1733126521055,0.005,96009.0,95999.0,0.2584607]
[1733126521251,0.2,96018.0,96002.0,0.0003267]
[1733126521252,0.0014646,96008.0,96002.0,0.0003267]
[1733126521455,0.0014646,96011.0,96004.0,0.0003267]
[1733126521663,0.0014646,96010.0,96004.0,0.0003267]
[1733126521911,0.09290021,96005.0,96004.0,0.0003267]
[1733126522406,0.09290021,96005.0,95998.0,0.0755]
[1733126522407,0.09290021,95999.0,95998.0,0.0755]
[1733126522628,0.09290021,95989.0,95988.0,0.2765]
[1733126523061,0.09290021,95989.0,95988.0,0.2295]
[1733126523477,0.09290021,95989.0,95988.0,0.2304821]
[1733126523698,0.09290021,95989.0,95988.0,0.0009821]
[1733126524564,0.09436481,95989.0,95988.0,0.0009821]
[1733126525021,0.09436481,95989.0,95988.0,0.0049821]
[1733126525671,0.09436481,95989.0,95988.0,0.0009821]
[1733126526306,0.09436481,95989.0,95988.0,0.0059821]
[1733126526973,0.09436481,95989.0,95988.0,0.0009821]
[1733126527210,0.09536481,95989.0,95988.0,0.0019821]
[1733126528759,0.001,95989.0,95988.0,0.1328821]
[1733126528999,0.09390021,95989.0,95988.0,0.1328821]
[1733126529208,0.09390021,95989.0,95988.0,0.0009935]
[1733126529702,0.001,95989.0,95988.0,0.0009935]
[1733126529915,0.09390021,95989.0,95988.0,0.0009935]
[1733126530389,0.001,95989.0,95988.0,0.10383871]
[1733126530632,0.09390021,95989.0,95988.0,0.10383871]
[1733126530843,0.09290021,95993.0,95988.0,0.10783871]
[1733126531071,0.09290021,95989.0,95988.0,0.11183871]
[1733126531283,0.09290021,95993.0,95989.0,0.208357]
[1733126531526,0.09290021,95993.0,95991.0,0.208352]
[1733126531755,0.0014646,96005.0,95990.0,0.10284521]
[1733126531756,0.0014646,96005.0,95997.0,0.208339]
[1733126531992,0.0014646,96009.0,95997.0,0.208339]
[1733126532197,0.208313,96010.0,95992.0,0.10284521]
[1733126532198,0.208318,96007.0,95998.0,0.0812]
[1733126532423,0.09290021,95999.0,95998.0,0.0812]
[1733126533314,0.09290021,95993.0,95992.0,0.10284521]
[1733126533745,0.09290021,95991.0,95989.0,0.004]
[1733126536240,0.09290021,95982.0,95981.0,0.0017284]
[1733126536927,0.09290021,95982.0,95981.0,0.0037284]
[1733126537415,0.09290021,95982.0,95981.0,0.0017284]
[1733126537669,0.09290021,95982.0,95981.0,0.0047284]
[1733126538638,0.09290021,95982.0,95981.0,0.0067284]
[1733126540296,0.09436481,95982.0,95981.0,0.0067284]
[1733126541006,0.09436481,95982.0,95981.0,0.01451485]
[1733126541455,0.19721002,95982.0,95981.0,0.01451485]
[1733126541650,0.34481002,95982.0,95981.0,0.01451485]
[1733126541860,0.55704828,95982.0,95981.0,0.01251485]
[1733126542071,0.80987974,95982.0,95981.0,0.00951485]
[1733126542318,0.80987974,95982.0,95981.0,0.0037284]
[1733126542529,0.88647974,95982.0,95981.0,0.0037284]
[1733126542736,0.88747974,95982.0,95981.0,0.0017284]
[1733126542956,0.88647974,95982.0,95981.0,0.0017284]
[1733126543418,0.98647974,95982.0,95981.0,0.0017284]
[1733126543673,0.98747974,95982.0,95981.0,0.0017284]
[1733126544388,0.99247974,95982.0,95981.0,0.0017284]
[1733126545775,1.01547974,95982.0,95981.0,4e-07]
[1733126546230,1.00947974,95982.0,95981.0,4e-07]
[1733126546477,1.01047974,95982.0,95981.0,4e-07]
[1733126546955,0.09290021,95964.0,95963.0,0.0508647]
[1733126547207,0.09290021,95964.0,95958.0,0.0008641]
[1733126547208,0.34290021,95959.0,95958.0,0.0008641]
[1733126547427,0.90526742,95959.0,95958.0,5.968e-05]
[1733126547910,1.10526742,95959.0,95958.0,5.968e-05]
[1733126548123,1.20809888,95959.0,95958.0,5.968e-05]
[1733126549048,1.10526742,95959.0,95958.0,5.968e-05]
[1733126549271,1.10456742,95959.0,95958.0,5.968e-05]
[1733126549488,0.80106742,95959.0,95958.0,5.968e-05]
[1733126549743,0.408422,95959.0,95958.0,5.968e-05]
[1733126549946,0.30432221,95959.0,95958.0,5.968e-05]
[1733126550507,0.30132221,95959.0,95958.0,5.968e-05]
[1733126551156,0.31032221,95959.0,95958.0,0.00105968]
[1733126554357,0.30832221,95959.0,95958.0,0.00105968]
[1733126555316,0.41116742,95959.0,95958.0,0.00105968]
[1733126556872,0.61116742,95959.0,95958.0,0.00105968]
[1733126558600,0.62529528,95959.0,95958.0,0.00105968]
[1733126559915,0.42529528,95959.0,95958.0,0.00105968]
[1733126560571,0.215422,95959.0,95958.0,0.00105968]
[1733126560797,0.30832221,95959.0,95958.0,0.00105968]
[1733126564354,0.41116742,95959.0,95958.0,0.00105968]
[1733126565978,0.54306742,95959.0,95958.0,0.00105968]
[1733126566460,0.91536742,95959.0,95958.0,0.00105968]
[1733126566700,0.46520021,95958.0,95957.0,7.8e-07]
[1733126566922,0.57087688,95958.0,95957.0,7.8e-07]
[1733126567171,0.67087688,95958.0,95957.0,7.8e-07]
[1733126567815,0.87087688,95958.0,95957.0,7.8e-07]
[1733126568022,0.87087688,95958.0,95957.0,0.00100078]
[1733126568023,0.87887688,95958.0,95957.0,0.00100078]
[1733126569581,0.88087688,95958.0,95957.0,0.00100078]
[1733126570036,0.88087688,95958.0,95957.0,7.8e-07]
[1733126573687,1.00637688,95958.0,95957.0,7.8e-07]
[1733126574321,0.30136321,95940.0,95939.0,0.0009865]
[1733126574542,0.16472753,95940.0,95939.0,0.00017883]
[1733126574768,0.09436481,95940.0,95939.0,0.00017883]
[1733126575629,0.09536481,95940.0,95939.0,0.00017883]
[1733126576074,0.10036481,95940.0,95939.0,0.00117883]
[1733126576930,0.20321002,95940.0,95939.0,0.00117883]
[1733126579956,0.40321002,95940.0,95939.0,0.00117883]
[1733126580180,0.58527688,95940.0,95939.0,0.00117883]
[1733126580394,0.58527688,95940.0,95939.0,2.3e-07]
[1733126580395,1.06950483,95940.0,95939.0,2.3e-07]
[1733126580609,0.93910223,95940.0,95939.0,2.3e-07]
[1733126580831,0.97378663,95940.0,95939.0,2.3e-07]
[1733126581033,0.94156128,95940.0,95939.0,2.3e-07]
[1733126581372,0.94056128,95940.0,95939.0,2.3e-07]
[1733126581520,0.85986128,95940.0,95939.0,2.3e-07]
[1733126581756,0.68826128,95940.0,95939.0,2.3e-07]
[1733126582206,0.58042982,95940.0,95939.0,2.3e-07]
[1733126582435,0.58242982,95940.0,95939.0,2.3e-07]
[1733126582636,0.58942982,95940.0,95939.0,2.3e-07]
[1733126582771,0.38942982,95940.0,95939.0,2.3e-07]
[1733126584315,0.58752982,95940.0,95939.0,2.3e-07]
[1733126584462,0.69036128,95940.0,95939.0,2.3e-07]
[1733126584676,0.0993,95931.0,95924.0,0.0008642]
[1733126584991,0.30139621,95925.0,95924.0,0.0008642]
[1733126585276,0.54854142,95925.0,95924.0,0.0008642]
[1733126585391,0.79784142,95925.0,95924.0,0.0008642]
[1733126585595,0.90067288,95925.0,95924.0,0.0008642]
[1733126586930,1.10367288,95925.0,95924.0,0.0008642]
[1733126587136,1.12470977,95925.0,95924.0,0.0008642]
[1733126587587,1.12470977,95925.0,95924.0,0.0018642]
[1733126588050,1.12470977,95925.0,95924.0,0.0008642]
[1733126588278,1.12170977,95925.0,95924.0,0.0008642]
[1733126588708,1.12370977,95925.0,95924.0,0.0018642]
[1733126589602,1.13775924,95925.0,95924.0,0.0018642]
[1733126589812,1.03845924,95925.0,95924.0,0.0018642]
[1733126590019,1.13775924,95925.0,95924.0,0.0018642]
[1733126590250,1.03845924,95925.0,95924.0,0.0018642]
[1733126590763,0.96265924,95925.0,95924.0,0.0018642]
[1733126591002,0.54842757,95925.0,95924.0,0.0018642]
[1733126591919,0.34842757,95925.0,95924.0,0.0018642]
[1733126592132,0.44132778,95925.0,95924.0,0.0018642]
[1733126592337,0.34842757,95925.0,95924.0,0.0018642]
[1733126592551,0.42496733,95925.0,95924.0,0.0018642]
[1733126593034,0.51786754,95925.0,95924.0,0.0018642]
[1733126595965,0.41502233,95925.0,95924.0,0.0018642]
[1733126596169,0.22454547,95925.0,95924.0,0.0018642]
[1733126596379,0.31744568,95925.0,95924.0,0.0810642]
[1733126596880,0.30339621,95925.0,95924.0,0.0810642]
[1733126597126,0.30339621,95925.0,95924.0,0.1292642]
[1733126597786,0.09490021,95925.0,95924.0,0.1292642]
[1733126599043,0.002,95925.0,95924.0,0.1292642]
[1733126599253,0.002,95925.0,95924.0,0.1299642]
[1733126601009,0.002,95925.0,95924.0,0.23180941]
[1733126601233,0.0014646,95954.0,95939.0,0.0007]
[1733126601457,0.0014646,95954.0,95939.0,0.1323]
[1733126601679,0.09290021,95952.0,95939.0,0.1323]
[1733126601900,0.0014646,95951.0,95939.0,0.1323]
[1733126602110,0.09290021,95952.0,95939.0,0.1323]
[1733126602319,0.0014646,95951.0,95939.0,0.1323]
[1733126602528,0.0027292,95940.0,95939.0,0.1323]
[1733126602740,0.0017292,95940.0,95939.0,0.1323]
[1733126603175,0.0027292,95940.0,95939.0,0.1332907]
[1733126603602,0.0027292,95940.0,95939.0,0.23613591]
[1733126604049,0.0027292,95940.0,95939.0,0.24013591]
[1733126610399,0.0017292,95940.0,95939.0,0.39013591]
[1733126610640,0.0017288,95959.0,95941.0,0.00709979]
[1733126610914,0.0017288,95959.0,95939.0,0.51313591]
[1733126610915,0.00190716,95959.0,95958.0,0.23033117]
[1733126611152,0.00190716,95959.0,95958.0,0.46147638]
[1733126612727,0.00190716,95959.0,95958.0,0.46947638]
[1733126612945,0.00290716,95959.0,95958.0,0.63357617]
[1733126614482,0.00290716,95959.0,95958.0,0.62647638]
[1733126614702,0.00290716,95959.0,95958.0,0.63357617]
[1733126617179,0.00290716,95959.0,95958.0,0.73357617]
[1733126620277,0.00290716,95959.0,95958.0,2.24428117]
[1733126620973,0.00290716,95959.0,95958.0,2.23628117]
[1733126621185,0.00290716,95959.0,95958.0,1.96471417]
[1733126621390,0.00590716,95959.0,95958.0,1.61027617]
[1733126621602,0.00490716,95959.0,95958.0,1.60327617]
[1733126621811,0.01090716,95959.0,95958.0,1.60427617]
[1733126622235,0.01090716,95959.0,95958.0,1.19445917]
[1733126622446,0.0008643,95982.0,95981.0,0.306674]
[1733126622665,0.0008643,95982.0,95981.0,0.41050131]
[1733126622892,0.09290021,96000.0,95982.0,0.023]
[1733126623107,0.09290021,96000.0,95984.0,0.023]
[1733126623316,0.09290021,96000.0,95973.0,0.15]
[1733126623317,0.208362,95987.0,95973.0,0.15]
[1733126623531,0.17210021,95980.0,95962.0,0.208415]
[1733126623795,0.208368,95984.0,95967.0,0.208404]
[1733126623987,0.0451,95991.0,95970.0,0.16262795]
[1733126624220,0.09290021,95984.0,95971.0,0.10284521]
[1733126624465,0.09290021,95984.0,95972.0,0.208394]